[Event "Titled Tuesday Blitz October 11 Early 2022"]
[White "Aloma Vidal, Robert"]
[Black "Cnejev, Vladimir-Alexandru"]
[WhiteFideId "2260409"]
[BlackFideId "1260898"]
[WhiteElo "2435"]
[BlackElo "2193"]
[Result "0-1"]
[Round "08"]
[TimeControl "180+1"]
[Date "2022.10.12"]
[WhiteClock "0:00:10"]
[BlackClock "0:00:18"]

1. e4 {[%clk 0:02:35]}  e5 {[%clk 0:02:59]} 2. Nf3 {[%clk 0:02:34]}  Nc6 {[%clk 0:02:58]} 3. Bc4 {[%clk 0:02:35]}  Bc5 {[%clk 0:02:55]} 4. b4 {[%clk 0:02:33]}  Bb6 {[%clk 0:02:54]} 5. a4 {[%clk 0:02:33]}  a6 {[%clk 0:02:54]} 6. Nc3 {[%clk 0:02:31]}  Nf6 {[%clk 0:02:54]} 7. Nd5 {[%clk 0:02:26]}  Nxe4 {[%clk 0:02:49]} 8. O-O {[%clk 0:02:26]}  O-O {[%clk 0:02:48]} 9. d3 {[%clk 0:02:24]}  Nf6 {[%clk 0:02:42]} 10. Bg5 {[%clk 0:02:23]}  d6 {[%clk 0:02:27]} 11. Nd2 {[%clk 0:02:00]}  Be6 {[%clk 0:02:20]} 12. Ne4 {[%clk 0:01:57]}  Bxd5 {[%clk 0:01:27]} 13. Bxd5 {[%clk 0:01:56]}  Nxd5 {[%clk 0:01:18]} 14. Bxd8 {[%clk 0:01:55]}  Raxd8 {[%clk 0:01:19]} 15. b5 {[%clk 0:01:45]}  axb5 {[%clk 0:01:14]} 16. axb5 {[%clk 0:01:45]}  Nd4 {[%clk 0:01:13]} 17. c3 {[%clk 0:01:45]}  Ne6 {[%clk 0:00:47]} 18. Qb3 {[%clk 0:01:42]}  Ndf4 {[%clk 0:00:46]} 19. Rad1 {[%clk 0:01:41]}  Kh8 {[%clk 0:00:45]} 20. g3 {[%clk 0:01:39]}  Ng6 {[%clk 0:00:42]} 21. h4 {[%clk 0:01:31]}  d5 {[%clk 0:00:40]} 22. Ng5 {[%clk 0:01:24]}  Nc5 {[%clk 0:00:39]} 23. Qa2 {[%clk 0:01:17]}  f6 {[%clk 0:00:39]} 24. d4 {[%clk 0:01:03]}  fxg5 {[%clk 0:00:29]} 25. dxc5 {[%clk 0:01:03]}  Bxc5 {[%clk 0:00:30]} 26. Rxd5 {[%clk 0:01:03]}  b6 {[%clk 0:00:25]} 27. h5 {[%clk 0:00:57]}  Ne7 {[%clk 0:00:17]} 28. Rxe5 {[%clk 0:00:53]}  Nf5 {[%clk 0:00:17]} 29. Kg2 {[%clk 0:00:49]}  Nd6 {[%clk 0:00:13]} 30. Qe2 {[%clk 0:00:44]}  h6 {[%clk 0:00:12]} 31. g4 {[%clk 0:00:33]}  Rf4 {[%clk 0:00:11]} 32. f3 {[%clk 0:00:33]}  Rdf8 {[%clk 0:00:11]} 33. Re6 {[%clk 0:00:24]}  Nc4 {[%clk 0:00:11]} 34. Re8 {[%clk 0:00:18]}  Rxe8 {[%clk 0:00:09]} 35. Qxe8+ {[%clk 0:00:18]}  Rf8 {[%clk 0:00:10]} 36. Qe6 {[%clk 0:00:14]}  Ne3+ {[%clk 0:00:09]} 37. Kf2 {[%clk 0:00:13]}  Nxf1+ {[%clk 0:00:08]} 38. Kxf1 {[%clk 0:00:14]}  Rxf3+ {[%clk 0:00:08]} 39. Ke2 {[%clk 0:00:14]}  Re3+ {[%clk 0:00:07]} 40. Qxe3 {[%clk 0:00:14]}  Bxe3 {[%clk 0:00:08]} 41. Kxe3 {[%clk 0:00:15]}  Kg8 {[%clk 0:00:09]} 42. Ke4 {[%clk 0:00:15]}  Kf7 {[%clk 0:00:10]} 43. Kf5 {[%clk 0:00:09]}  Ke7 {[%clk 0:00:08]} 44. Ke5 {[%clk 0:00:09]}  Kf7 {[%clk 0:00:08]} 45. Kf5 {[%clk 0:00:09]}  Ke7 {[%clk 0:00:08]} 46. Ke5 {[%clk 0:00:07]}  Kf7 {[%clk 0:00:07]} 47. c4 {[%clk 0:00:04]}  g6 {[%clk 0:00:07]} 48. hxg6+ {[%clk 0:00:01]}  Kxg6 {[%clk 0:00:07]} 49. Kd5 {[%clk 0:00:01]}  h5 {[%clk 0:00:08]} 50. gxh5+ {[%clk 0:00:01]}  Kxh5 {[%clk 0:00:09]} 51. Kc6 {[%clk 0:00:02]}  g4 {[%clk 0:00:09]} 52. Kxc7 {[%clk 0:00:02]}  g3 {[%clk 0:00:10]} 53. Kxb6 {[%clk 0:00:03]}  g2 {[%clk 0:00:11]} 54. Kb7 {[%clk 0:00:03]}  g1=Q {[%clk 0:00:12]} 55. Kc6 {[%clk 0:00:03]}  Kg6 {[%clk 0:00:12]} 56. c5 {[%clk 0:00:04]}  Kf7 {[%clk 0:00:12]} 57. Kd6 {[%clk 0:00:04]}  Qg3+ {[%clk 0:00:12]} 58. Kd7 {[%clk 0:00:04]}  Qb8 {[%clk 0:00:11]} 59. b6 {[%clk 0:00:04]}  Qb7+ {[%clk 0:00:12]} 60. Kd6 {[%clk 0:00:04]}  Ke8 {[%clk 0:00:12]} 61. c6 {[%clk 0:00:04]}  Qxb6 {[%clk 0:00:12]} 62. Kd5 {[%clk 0:00:05]}  Kd8 {[%clk 0:00:12]} 63. Kd6 {[%clk 0:00:06]}  Kc8 {[%clk 0:00:13]} 64. Kd5 {[%clk 0:00:06]}  Kc7 {[%clk 0:00:14]} 65. Ke6 {[%clk 0:00:06]}  Qxc6+ {[%clk 0:00:15]} 66. Ke7 {[%clk 0:00:07]}  Qd6+ {[%clk 0:00:15]} 67. Ke8 {[%clk 0:00:07]}  Qd7+ {[%clk 0:00:16]} 68. Kf8 {[%clk 0:00:08]}  Kd6 {[%clk 0:00:16]} 69. Kg8 {[%clk 0:00:08]}  Ke6 {[%clk 0:00:17]} 70. Kh8 {[%clk 0:00:09]}  Kf6 {[%clk 0:00:18]} 71. Kg8 {[%clk 0:00:10]}  Qg7# {[%clk 0:00:18]} 0-1


[Site "https://www.chess.com"]

[Event "Titled Tuesday Blitz October 11 Early 2022"]
[White "Ambartsumova, Karina"]
[Black "Veleshnja, Zino"]
[WhiteFideId "4166299"]
[BlackFideId "4701313"]
[WhiteElo "2299"]
[BlackElo "2167"]
[Result "0-1"]
[Round "08"]
[TimeControl "180+1"]
[Date "2022.10.12"]
[WhiteClock "0:00:01"]
[BlackClock "0:00:09"]

1. Nf3 {[%clk 0:03:00]}  Nf6 {[%clk 0:02:59]} 2. c4 {[%clk 0:02:58]}  e6 {[%clk 0:02:59]} 3. g3 {[%clk 0:02:57]}  d5 {[%clk 0:02:59]} 4. Bg2 {[%clk 0:02:58]}  Be7 {[%clk 0:02:58]} 5. O-O {[%clk 0:02:58]}  O-O {[%clk 0:02:59]} 6. b3 {[%clk 0:02:58]}  c6 {[%clk 0:02:58]} 7. Bb2 {[%clk 0:02:58]}  Nbd7 {[%clk 0:02:58]} 8. e3 {[%clk 0:02:57]}  b6 {[%clk 0:02:57]} 9. Qe2 {[%clk 0:02:57]}  Bb7 {[%clk 0:02:56]} 10. Nc3 {[%clk 0:02:58]}  e5 {[%clk 0:02:47]} 11. d4 {[%clk 0:02:42]}  e4 {[%clk 0:02:46]} 12. Ne5 {[%clk 0:02:42]}  Bd6 {[%clk 0:02:40]} 13. cxd5 {[%clk 0:02:12]}  Nxe5 {[%clk 0:02:15]} 14. dxe5 {[%clk 0:02:11]}  Bxe5 {[%clk 0:02:16]} 15. Nxe4 {[%clk 0:01:58]}  Bxb2 {[%clk 0:02:00]} 16. Qxb2 {[%clk 0:01:59]}  Nxd5 {[%clk 0:01:57]} 17. Rfd1 {[%clk 0:01:57]}  Qe7 {[%clk 0:01:55]} 18. Rac1 {[%clk 0:01:47]}  Rad8 {[%clk 0:01:55]} 19. h4 {[%clk 0:01:28]}  c5 {[%clk 0:01:54]} 20. Ng5 {[%clk 0:01:27]}  h6 {[%clk 0:01:50]} 21. Nf3 {[%clk 0:01:19]}  Nb4 {[%clk 0:01:24]} 22. Ne1 {[%clk 0:01:14]}  Bxg2 {[%clk 0:01:20]} 23. Kxg2 {[%clk 0:01:15]}  Qe4+ {[%clk 0:01:20]} 24. Kg1 {[%clk 0:01:15]}  Nd3 {[%clk 0:01:08]} 25. Qc2 {[%clk 0:00:41]}  Nxc1 {[%clk 0:01:06]} 26. Qxe4 {[%clk 0:00:19]}  Rxd1 {[%clk 0:01:06]} 27. Kf1 {[%clk 0:00:20]}  Rfd8 {[%clk 0:00:57]} 28. Qf3 {[%clk 0:00:09]}  Nxa2 {[%clk 0:00:51]} 29. Qe2 {[%clk 0:00:09]}  Nc3 {[%clk 0:00:46]} 30. Qc4 {[%clk 0:00:09]}  Rxe1+ {[%clk 0:00:44]} 31. Kg2 {[%clk 0:00:10]}  Rc1 {[%clk 0:00:35]} 32. Qa6 {[%clk 0:00:10]}  Nd5 {[%clk 0:00:24]} 33. Qxa7 {[%clk 0:00:09]}  Rd1 {[%clk 0:00:24]} 34. h5 {[%clk 0:00:07]}  Rd2 {[%clk 0:00:18]} 35. Kf3 {[%clk 0:00:07]}  Nf6 {[%clk 0:00:18]} 36. Qxb6 {[%clk 0:00:07]}  R2d5 {[%clk 0:00:18]} 37. Qc6 {[%clk 0:00:06]}  Rxh5 {[%clk 0:00:13]} 38. e4 {[%clk 0:00:06]}  Re5 {[%clk 0:00:13]} 39. Qc7 {[%clk 0:00:04]}  Rde8 {[%clk 0:00:12]} 40. Kg2 {[%clk 0:00:03]}  Nxe4 {[%clk 0:00:12]} 41. Qc6 {[%clk 0:00:03]}  R5e6 {[%clk 0:00:12]} 42. Qd5 {[%clk 0:00:02]}  Rf6 {[%clk 0:00:11]} 43. f3 {[%clk 0:00:02]}  Nd6 {[%clk 0:00:10]} 44. Qc6 {[%clk 0:00:01]}  Re2+ {[%clk 0:00:09]} 0-1


[Site "https://www.chess.com"]

[Event "Titled Tuesday Blitz October 11 Early 2022"]
[White "Ardila, Oscar Humberto"]
[Black "Podetti, Davide"]
[WhiteFideId "4404742"]
[BlackFideId "893617"]
[WhiteElo "1898"]
[BlackElo "2160"]
[Result "0-1"]
[Round "08"]
[TimeControl "180+1"]
[Date "2022.10.12"]
[WhiteClock "0:00:05"]
[BlackClock "0:00:20"]

1. d4 {[%clk 0:02:59]}  Nf6 {[%clk 0:02:59]} 2. c4 {[%clk 0:02:59]}  e6 {[%clk 0:03:00]} 3. Nc3 {[%clk 0:02:59]}  Bb4 {[%clk 0:03:00]} 4. Qc2 {[%clk 0:02:59]}  O-O {[%clk 0:02:56]} 5. Nf3 {[%clk 0:02:59]}  d6 {[%clk 0:02:45]} 6. Bg5 {[%clk 0:02:58]}  h6 {[%clk 0:02:44]} 7. Bh4 {[%clk 0:02:58]}  Nc6 {[%clk 0:02:44]} 8. e3 {[%clk 0:02:57]}  d5 {[%clk 0:02:34]} 9. Bd3 {[%clk 0:02:42]}  dxc4 {[%clk 0:02:33]} 10. Bxc4 {[%clk 0:02:42]}  Be7 {[%clk 0:02:33]} 11. O-O {[%clk 0:02:41]}  Nd5 {[%clk 0:02:21]} 12. Bxe7 {[%clk 0:02:38]}  Ncxe7 {[%clk 0:02:20]} 13. Rad1 {[%clk 0:02:33]}  Nxc3 {[%clk 0:02:18]} 14. bxc3 {[%clk 0:02:32]}  b6 {[%clk 0:02:17]} 15. Ne5 {[%clk 0:02:31]}  Bb7 {[%clk 0:02:17]} 16. Qb3 {[%clk 0:02:24]}  Qd6 {[%clk 0:02:08]} 17. f4 {[%clk 0:02:14]}  Nf5 {[%clk 0:01:51]} 18. Rde1 {[%clk 0:02:10]}  Bd5 {[%clk 0:01:39]} 19. e4 {[%clk 0:01:52]}  Bxc4 {[%clk 0:01:38]} 20. Qxc4 {[%clk 0:01:53]}  Ne7 {[%clk 0:01:38]} 21. Re3 {[%clk 0:01:37]}  f6 {[%clk 0:01:25]} 22. Ng4 {[%clk 0:01:36]}  Qc6 {[%clk 0:01:25]} 23. Qb3 {[%clk 0:01:28]}  Rad8 {[%clk 0:01:24]} 24. Rg3 {[%clk 0:01:27]}  Kh7 {[%clk 0:01:21]} 25. Qc2 {[%clk 0:01:20]}  Kh8 {[%clk 0:01:20]} 26. Rh3 {[%clk 0:01:19]}  Ng8 {[%clk 0:01:05]} 27. f5 {[%clk 0:01:00]}  exf5 {[%clk 0:01:00]} 28. exf5 {[%clk 0:01:00]}  Rde8 {[%clk 0:00:59]} 29. Qd2 {[%clk 0:00:51]}  Rf7 {[%clk 0:00:52]} 30. d5 {[%clk 0:00:45]}  Qc5+ {[%clk 0:00:50]} 31. Kh1 {[%clk 0:00:45]}  Qc4 {[%clk 0:00:42]} 32. Rd3 {[%clk 0:00:30]}  Qxg4 {[%clk 0:00:41]} 33. h3 {[%clk 0:00:26]}  Qg5 {[%clk 0:00:40]} 34. Qf2 {[%clk 0:00:24]}  Rfe7 {[%clk 0:00:40]} 35. d6 {[%clk 0:00:24]}  cxd6 {[%clk 0:00:40]} 36. Rxd6 {[%clk 0:00:24]}  Qe3 {[%clk 0:00:40]} 37. Qf3 {[%clk 0:00:17]}  Qxf3 {[%clk 0:00:40]} 38. Rxf3 {[%clk 0:00:17]}  Re3 {[%clk 0:00:36]} 39. Rc6 {[%clk 0:00:10]}  Rxf3 {[%clk 0:00:35]} 40. gxf3 {[%clk 0:00:11]}  Ne7 {[%clk 0:00:32]} 41. Rc7 {[%clk 0:00:11]}  Nxf5 {[%clk 0:00:32]} 42. Rxa7 {[%clk 0:00:11]}  Re3 {[%clk 0:00:32]} 43. Rc7 {[%clk 0:00:10]}  Rxf3 {[%clk 0:00:32]} 44. Kg2 {[%clk 0:00:10]}  Rd3 {[%clk 0:00:32]} 45. a4 {[%clk 0:00:10]}  Kh7 {[%clk 0:00:28]} 46. Kf2 {[%clk 0:00:08]}  Kg6 {[%clk 0:00:27]} 47. Kg2 {[%clk 0:00:08]}  h5 {[%clk 0:00:27]} 48. Rc6 {[%clk 0:00:06]}  Kg5 {[%clk 0:00:26]} 49. Rxb6 {[%clk 0:00:06]}  Rxc3 {[%clk 0:00:26]} 50. a5 {[%clk 0:00:06]}  Ra3 {[%clk 0:00:26]} 51. a6 {[%clk 0:00:07]}  g6 {[%clk 0:00:23]} 52. Kh2 {[%clk 0:00:06]}  h4 {[%clk 0:00:23]} 53. Kg2 {[%clk 0:00:06]}  Ng3 {[%clk 0:00:22]} 54. Rb5+ {[%clk 0:00:05]}  f5 {[%clk 0:00:22]} 55. Rb6 {[%clk 0:00:05]}  Ne4 {[%clk 0:00:22]} 56. Kh2 {[%clk 0:00:05]}  Nc5 {[%clk 0:00:21]} 57. Kg2 {[%clk 0:00:05]}  Rxa6 {[%clk 0:00:20]} 0-1


[Site "https://www.chess.com"]

[Event "Titled Tuesday Blitz October 11 Early 2022"]
[White "Atanasov, Anthony"]
[Black "D`Arruda, Ricardo D."]
[WhiteFideId "2623897"]
[BlackFideId "100692"]
[WhiteElo "2048"]
[BlackElo "2423"]
[Result "1-0"]
[Round "08"]
[TimeControl "180+1"]
[Date "2022.10.12"]
[WhiteClock "0:01:36"]
[BlackClock "0:00:14"]

1. e4 {[%clk 0:03:00]}  c5 {[%clk 0:02:39]} 2. Nf3 {[%clk 0:02:55]}  Nc6 {[%clk 0:02:39]} 3. c3 {[%clk 0:02:51]}  e6 {[%clk 0:02:38]} 4. d4 {[%clk 0:02:51]}  d5 {[%clk 0:02:38]} 5. exd5 {[%clk 0:02:49]}  exd5 {[%clk 0:02:38]} 6. dxc5 {[%clk 0:02:49]}  Bxc5 {[%clk 0:02:38]} 7. Be2 {[%clk 0:02:49]}  Nge7 {[%clk 0:02:38]} 8. O-O {[%clk 0:02:49]}  O-O {[%clk 0:02:38]} 9. Bf4 {[%clk 0:02:50]}  Be6 {[%clk 0:02:35]} 10. Nbd2 {[%clk 0:02:50]}  h6 {[%clk 0:02:33]} 11. Nb3 {[%clk 0:02:50]}  Bb6 {[%clk 0:02:32]} 12. Nfd4 {[%clk 0:02:50]}  Qd7 {[%clk 0:02:31]} 13. Re1 {[%clk 0:02:50]}  Rfe8 {[%clk 0:02:30]} 14. Nxe6 {[%clk 0:02:49]}  fxe6 {[%clk 0:02:29]} 15. Bg4 {[%clk 0:02:49]}  Nf5 {[%clk 0:02:22]} 16. Qd3 {[%clk 0:02:48]}  Rf8 {[%clk 0:02:17]} 17. Rad1 {[%clk 0:02:44]}  Rae8 {[%clk 0:02:14]} 18. c4 {[%clk 0:02:25]}  d4 {[%clk 0:02:11]} 19. c5 {[%clk 0:02:20]}  Bd8 {[%clk 0:01:53]} 20. Bxf5 {[%clk 0:02:05]}  exf5 {[%clk 0:01:48]} 21. Bd6 {[%clk 0:02:03]}  Rxe1+ {[%clk 0:01:46]} 22. Rxe1 {[%clk 0:02:04]}  Re8 {[%clk 0:01:46]} 23. Rxe8+ {[%clk 0:01:57]}  Qxe8 {[%clk 0:01:47]} 24. Kf1 {[%clk 0:01:58]}  Qe6 {[%clk 0:01:46]} 25. Nxd4 {[%clk 0:01:54]}  Nxd4 {[%clk 0:01:44]} 26. Qxd4 {[%clk 0:01:55]}  Qxa2 {[%clk 0:01:43]} 27. Be5 {[%clk 0:01:50]}  Qa6+ {[%clk 0:01:37]} 28. Ke1 {[%clk 0:01:49]}  Qa1+ {[%clk 0:01:28]} 29. Kd2 {[%clk 0:01:43]}  Ba5+ {[%clk 0:01:21]} 30. Kc2 {[%clk 0:01:42]}  Qf1 {[%clk 0:00:58]} 31. b4 {[%clk 0:01:41]}  Qe2+ {[%clk 0:00:53]} 32. Kb3 {[%clk 0:01:40]}  b5 {[%clk 0:00:14]} 33. bxa5 {[%clk 0:01:36]} 1-0


[Site "https://www.chess.com"]

[Event "Titled Tuesday Blitz October 11 Early 2022"]
[White "Baskakov, Egor"]
[Black "Boros, Denes"]
[WhiteFideId "24197866"]
[BlackFideId "722340"]
[WhiteElo "2211"]
[BlackElo "2464"]
[Result "1-0"]
[Round "08"]
[TimeControl "180+1"]
[Date "2022.10.11"]
[WhiteClock "0:00:18"]
[BlackClock "0:00:22"]

1. e4 {[%clk 0:03:00]}  Nc6 {[%clk 0:02:52]} 2. Nc3 {[%clk 0:03:00]}  g6 {[%clk 0:02:53]} 3. g3 {[%clk 0:02:57]}  Bg7 {[%clk 0:02:54]} 4. Bg2 {[%clk 0:02:58]}  h5 {[%clk 0:02:54]} 5. h3 {[%clk 0:02:57]}  d6 {[%clk 0:02:54]} 6. Nge2 {[%clk 0:02:57]}  Nd4 {[%clk 0:02:54]} 7. Nxd4 {[%clk 0:02:57]}  Bxd4 {[%clk 0:02:55]} 8. O-O {[%clk 0:02:56]}  c5 {[%clk 0:02:55]} 9. d3 {[%clk 0:02:56]}  Bd7 {[%clk 0:02:51]} 10. Kh2 {[%clk 0:02:56]}  Bc6 {[%clk 0:02:48]} 11. Ne2 {[%clk 0:02:56]}  Bg7 {[%clk 0:02:48]} 12. d4 {[%clk 0:02:57]}  Nf6 {[%clk 0:02:45]} 13. Qd3 {[%clk 0:02:56]}  cxd4 {[%clk 0:02:41]} 14. Nxd4 {[%clk 0:02:56]}  O-O {[%clk 0:02:36]} 15. Be3 {[%clk 0:02:54]}  Nd7 {[%clk 0:02:33]} 16. c4 {[%clk 0:02:52]}  Rc8 {[%clk 0:02:30]} 17. Rac1 {[%clk 0:02:50]}  Qa5 {[%clk 0:02:29]} 18. a3 {[%clk 0:02:47]}  Nc5 {[%clk 0:02:24]} 19. Qb1 {[%clk 0:02:42]}  Bxd4 {[%clk 0:02:21]} 20. Bxd4 {[%clk 0:02:43]}  Nb3 {[%clk 0:02:21]} 21. Bc3 {[%clk 0:02:43]}  Qb6 {[%clk 0:02:19]} 22. Rcd1 {[%clk 0:02:42]}  Bd7 {[%clk 0:02:16]} 23. f4 {[%clk 0:02:37]}  Rxc4 {[%clk 0:02:14]} 24. Qd3 {[%clk 0:02:35]}  Bb5 {[%clk 0:02:10]} 25. Rfe1 {[%clk 0:02:31]}  Rfc8 {[%clk 0:02:04]} 26. Qf3 {[%clk 0:02:31]}  Nd4 {[%clk 0:01:46]} 27. Qf2 {[%clk 0:01:49]}  e5 {[%clk 0:01:46]} 28. f5 {[%clk 0:01:48]}  gxf5 {[%clk 0:01:28]} 29. exf5 {[%clk 0:01:44]}  Bc6 {[%clk 0:01:28]} 30. Qe3 {[%clk 0:01:24]}  Nxf5 {[%clk 0:01:24]} 31. Qg5+ {[%clk 0:01:24]}  Ng7 {[%clk 0:01:24]} 32. Rxd6 {[%clk 0:01:21]}  Qf2 {[%clk 0:01:22]} 33. Rg1 {[%clk 0:01:14]}  Qf5 {[%clk 0:01:03]} 34. Qe3 {[%clk 0:00:58]}  Bxg2 {[%clk 0:01:01]} 35. Rxg2 {[%clk 0:00:58]}  Re4 {[%clk 0:00:38]} 36. Qd2 {[%clk 0:00:52]}  h4 {[%clk 0:00:36]} 37. gxh4 {[%clk 0:00:29]}  Rf4 {[%clk 0:00:36]} 38. Rd3 {[%clk 0:00:18]}  f6 {[%clk 0:00:29]} 39. Rdg3 {[%clk 0:00:18]}  Rc7 {[%clk 0:00:22]} 40. Qd8+ {[%clk 0:00:18]}  Kh7 {[%clk 0:00:22]} 41. Qxc7 {[%clk 0:00:18]} 1-0


[Site "https://www.chess.com"]

[Event "Titled Tuesday Blitz October 11 Early 2022"]
[White "Broca Jimenez, Fernando"]
[Black "Chernomordik, Pavel"]
[WhiteFideId "5104742"]
[BlackFideId "2804530"]
[WhiteElo "2062"]
[BlackElo "2217"]
[Result "1-0"]
[Round "08"]
[TimeControl "180+1"]
[Date "2022.10.12"]
[WhiteClock "0:00:09"]
[BlackClock "0:00:05"]

1. e4 {[%clk 0:02:54]}  g6 {[%clk 0:03:00]} 2. c4 {[%clk 0:02:53]}  Bg7 {[%clk 0:02:57]} 3. Nc3 {[%clk 0:02:52]}  e5 {[%clk 0:02:57]} 4. Nf3 {[%clk 0:02:52]}  Nc6 {[%clk 0:02:56]} 5. Be2 {[%clk 0:02:45]}  d6 {[%clk 0:02:55]} 6. O-O {[%clk 0:02:44]}  Be6 {[%clk 0:02:54]} 7. b3 {[%clk 0:02:41]}  h6 {[%clk 0:02:52]} 8. Bb2 {[%clk 0:02:40]}  Nge7 {[%clk 0:02:51]} 9. Nd5 {[%clk 0:02:40]}  Nd4 {[%clk 0:02:43]} 10. Nxd4 {[%clk 0:02:23]}  exd4 {[%clk 0:02:43]} 11. f4 {[%clk 0:02:12]}  f5 {[%clk 0:02:38]} 12. Bd3 {[%clk 0:01:41]}  O-O {[%clk 0:02:29]} 13. Nxe7+ {[%clk 0:01:35]}  Qxe7 {[%clk 0:02:29]} 14. Qc2 {[%clk 0:01:17]}  c6 {[%clk 0:02:24]} 15. Rae1 {[%clk 0:01:12]}  Qd7 {[%clk 0:02:22]} 16. exf5 {[%clk 0:01:01]}  Bxf5 {[%clk 0:02:21]} 17. Bxf5 {[%clk 0:01:00]}  Rxf5 {[%clk 0:02:15]} 18. Qd3 {[%clk 0:00:59]}  c5 {[%clk 0:02:11]} 19. Qe4 {[%clk 0:00:58]}  Kh7 {[%clk 0:02:02]} 20. d3 {[%clk 0:00:41]}  d5 {[%clk 0:01:43]} 21. Qe7 {[%clk 0:00:32]}  Rf7 {[%clk 0:01:35]} 22. Qxd7 {[%clk 0:00:29]}  Rxd7 {[%clk 0:01:35]} 23. Re6 {[%clk 0:00:29]}  dxc4 {[%clk 0:01:30]} 24. bxc4 {[%clk 0:00:29]}  Rf8 {[%clk 0:01:29]} 25. g3 {[%clk 0:00:23]}  b6 {[%clk 0:01:24]} 26. Rfe1 {[%clk 0:00:23]}  g5 {[%clk 0:01:18]} 27. Bc1 {[%clk 0:00:21]}  Bf6 {[%clk 0:01:10]} 28. Kg2 {[%clk 0:00:19]}  Kg7 {[%clk 0:01:08]} 29. fxg5 {[%clk 0:00:16]}  hxg5 {[%clk 0:01:07]} 30. R1e4 {[%clk 0:00:16]}  Kf7 {[%clk 0:01:03]} 31. h3 {[%clk 0:00:16]}  Re7 {[%clk 0:00:59]} 32. Rxe7+ {[%clk 0:00:15]}  Bxe7 {[%clk 0:00:58]} 33. a4 {[%clk 0:00:16]}  Bf6 {[%clk 0:00:54]} 34. Bd2 {[%clk 0:00:13]}  Rb8 {[%clk 0:00:48]} 35. Kf3 {[%clk 0:00:13]}  Kg6 {[%clk 0:00:45]} 36. Kg4 {[%clk 0:00:13]}  b5 {[%clk 0:00:38]} 37. axb5 {[%clk 0:00:13]}  a6 {[%clk 0:00:35]} 38. bxa6 {[%clk 0:00:13]}  Rb2 {[%clk 0:00:34]} 39. Be1 {[%clk 0:00:07]}  Ra2 {[%clk 0:00:34]} 40. Re6 {[%clk 0:00:08]}  Kf7 {[%clk 0:00:34]} 41. Rc6 {[%clk 0:00:08]}  Be7 {[%clk 0:00:33]} 42. h4 {[%clk 0:00:07]}  gxh4 {[%clk 0:00:32]} 43. gxh4 {[%clk 0:00:08]}  Ke8 {[%clk 0:00:32]} 44. Bg3 {[%clk 0:00:09]}  Kd7 {[%clk 0:00:28]} 45. Rc7+ {[%clk 0:00:09]}  Ke6 {[%clk 0:00:27]} 46. a7 {[%clk 0:00:09]}  Bd8 {[%clk 0:00:18]} 47. Rb7 {[%clk 0:00:09]}  Ra6 {[%clk 0:00:14]} 48. h5 {[%clk 0:00:09]}  Bb6 {[%clk 0:00:06]} 49. Rxb6+ {[%clk 0:00:08]}  Rxb6 {[%clk 0:00:05]} 50. a8=Q {[%clk 0:00:09]} 1-0


[Site "https://www.chess.com"]

[Event "Titled Tuesday Blitz October 11 Early 2022"]
[White "Clawitter, Craig"]
[Black "Reprintsev, Alexander"]
[WhiteFideId "2023105"]
[BlackFideId "14100541"]
[WhiteElo "2285"]
[BlackElo "2230"]
[Result "0-1"]
[Round "08"]
[TimeControl "180+1"]
[Date "2022.10.12"]
[WhiteClock "0:00:11"]
[BlackClock "0:00:15"]

1. e4 {[%clk 0:03:00]}  d5 {[%clk 0:01:34]} 2. exd5 {[%clk 0:02:59]}  Qxd5 {[%clk 0:01:33]} 3. Nc3 {[%clk 0:02:59]}  Qa5 {[%clk 0:01:33]} 4. d4 {[%clk 0:02:59]}  Nf6 {[%clk 0:01:34]} 5. Nf3 {[%clk 0:02:59]}  Nc6 {[%clk 0:01:33]} 6. Bb5 {[%clk 0:02:46]}  Ne4 {[%clk 0:01:32]} 7. O-O {[%clk 0:02:39]}  Nxc3 {[%clk 0:01:32]} 8. Bxc6+ {[%clk 0:02:38]}  bxc6 {[%clk 0:01:32]} 9. Qe1 {[%clk 0:02:28]}  Ba6 {[%clk 0:01:04]} 10. bxc3 {[%clk 0:02:27]}  Bxf1 {[%clk 0:01:02]} 11. Kxf1 {[%clk 0:02:28]}  e6 {[%clk 0:01:01]} 12. Ne5 {[%clk 0:02:26]}  Bd6 {[%clk 0:00:59]} 13. Bf4 {[%clk 0:02:13]}  O-O {[%clk 0:00:56]} 14. Kg1 {[%clk 0:02:10]}  Bxe5 {[%clk 0:00:52]} 15. Bxe5 {[%clk 0:02:10]}  Rab8 {[%clk 0:00:52]} 16. Qe3 {[%clk 0:01:58]}  f6 {[%clk 0:00:52]} 17. Bg3 {[%clk 0:01:48]}  Rfe8 {[%clk 0:00:52]} 18. Re1 {[%clk 0:01:40]}  Qxa2 {[%clk 0:00:47]} 19. h4 {[%clk 0:01:33]}  Rb1 {[%clk 0:00:47]} 20. h5 {[%clk 0:01:30]}  Rxe1+ {[%clk 0:00:46]} 21. Qxe1 {[%clk 0:01:31]}  Qxc2 {[%clk 0:00:43]} 22. h6 {[%clk 0:01:31]}  g5 {[%clk 0:00:39]} 23. Bxc7 {[%clk 0:01:23]}  Kf7 {[%clk 0:00:38]} 24. Qa1 {[%clk 0:01:13]}  Re7 {[%clk 0:00:36]} 25. Bd6 {[%clk 0:00:46]}  Rb7 {[%clk 0:00:34]} 26. Qa6 {[%clk 0:00:44]}  Qb1+ {[%clk 0:00:34]} 27. Kh2 {[%clk 0:00:43]}  Qb5 {[%clk 0:00:34]} 28. Qa3 {[%clk 0:00:38]}  a5 {[%clk 0:00:30]} 29. Bf8 {[%clk 0:00:32]}  Qd5 {[%clk 0:00:20]} 30. Bg7 {[%clk 0:00:28]}  Qd8 {[%clk 0:00:20]} 31. Qc5 {[%clk 0:00:19]}  Qe7 {[%clk 0:00:15]} 32. Qxa5 {[%clk 0:00:16]}  Qc7+ {[%clk 0:00:15]} 33. Qxc7+ {[%clk 0:00:16]}  Rxc7 {[%clk 0:00:15]} 34. Kg3 {[%clk 0:00:16]}  c5 {[%clk 0:00:16]} 35. f4 {[%clk 0:00:15]}  gxf4+ {[%clk 0:00:15]} 36. Kxf4 {[%clk 0:00:15]}  cxd4 {[%clk 0:00:14]} 37. cxd4 {[%clk 0:00:16]}  Rc2 {[%clk 0:00:14]} 38. g4 {[%clk 0:00:15]}  Kg6 {[%clk 0:00:14]} 39. g5 {[%clk 0:00:13]}  fxg5+ {[%clk 0:00:13]} 40. Ke5 {[%clk 0:00:13]}  Re2+ {[%clk 0:00:13]} 41. Kd6 {[%clk 0:00:13]}  g4 {[%clk 0:00:14]} 42. Be5 {[%clk 0:00:13]}  Kf5 {[%clk 0:00:14]} 43. Ke7 {[%clk 0:00:12]}  Rxe5 {[%clk 0:00:14]} 44. dxe5 {[%clk 0:00:13]}  g3 {[%clk 0:00:14]} 45. Kf7 {[%clk 0:00:12]}  g2 {[%clk 0:00:14]} 46. Kg8 {[%clk 0:00:13]}  g1=Q+ {[%clk 0:00:15]} 47. Kh8 {[%clk 0:00:14]}  Kxe5 {[%clk 0:00:14]} 48. Kxh7 {[%clk 0:00:11]}  Kf6 {[%clk 0:00:15]} 49. Kh8 {[%clk 0:00:11]}  Kf7 {[%clk 0:00:15]} 50. h7 {[%clk 0:00:11]}  Qg7# {[%clk 0:00:15]} 0-1


[Site "https://www.chess.com"]